bitfinex-derivatives/quotes_BTCF0:USTF0_20250620
["timestamp","ask_amount","ask_price","bid_price","bid_amount"]
[1750424526962,0.03574889,106130.0,106120.0,1.94966716]
[1750424527162,0.21960492,106130.0,106120.0,1.95384123]
[1750424527355,0.22000492,106130.0,106120.0,1.95384123]
[1750424527553,0.27655508,106130.0,106120.0,1.95384123]
[1750424528066,0.28072915,106130.0,106120.0,1.94966716]
[1750424528561,0.22417899,106130.0,106120.0,1.94966716]
[1750424528862,0.22417899,106130.0,106120.0,1.57099456]
[1750424530783,0.28073306,106130.0,106120.0,1.57099456]
[1750424532280,0.27655899,106130.0,106120.0,1.57099456]
[1750424535282,0.28073306,106130.0,106120.0,1.57099456]
[1750424537383,0.03574889,106130.0,106120.0,1.57099456]
[1750424537570,0.03574889,106130.0,106120.0,1.95099456]
[1750424537571,0.22377899,106130.0,106120.0,1.95099456]
[1750424537771,0.28073293,106130.0,106120.0,1.95099456]
[1750424537983,0.22417899,106130.0,106120.0,1.95099456]
[1750424538178,0.22377899,106130.0,106120.0,1.95099456]
[1750424538386,0.22417899,106130.0,106120.0,1.95099456]
[1750424539083,0.29919817,106130.0,106120.0,1.95099456]
[1750424539884,0.22417899,106130.0,106120.0,1.95099456]
[1750424541484,0.29919817,106130.0,106120.0,1.95099456]
[1750424541782,0.11076807,106130.0,106120.0,1.95099456]
[1750424541986,0.22417889,106130.0,106120.0,1.95099456]
[1750424542390,0.03574889,106130.0,106120.0,1.95099456]
[1750424544784,0.03574889,106130.0,106120.0,2.31179456]
[1750424545991,0.03574889,106130.0,106120.0,2.44719456]
[1750424546490,0.22417889,106130.0,106120.0,2.44719456]
[1750424546691,0.03574889,106130.0,106120.0,2.44719456]
[1750424546992,0.03574889,106130.0,106120.0,2.06719456]
[1750424548186,0.11076807,106130.0,106120.0,2.06719456]
[1750424548789,0.11076807,106130.0,106120.0,2.44574798]
[1750424549092,0.09230311,106130.0,106120.0,2.05238798]
[1750424549392,0.09230311,106130.0,106120.0,3.14103817]
[1750424549590,0.08812904,106130.0,106120.0,3.14103817]
[1750424549786,0.08772904,106130.0,106120.0,3.14103817]
[1750424550483,0.09230311,106130.0,106120.0,3.14103817]
[1750424551091,0.03574889,106130.0,106120.0,3.14103817]
[1750424552887,0.03574889,106130.0,106120.0,2.38385634]
[1750424558503,0.03157482,106130.0,106120.0,2.38385634]
[1750424559607,0.03574889,106130.0,106120.0,2.38385634]
[1750424560608,0.03157482,106130.0,106120.0,2.38385634]
[1750424561107,0.03117482,106130.0,106120.0,2.38385634]
[1750424561401,0.03157482,106130.0,106120.0,2.38385634]
[1750424561600,0.03574889,106130.0,106120.0,2.38385634]
[1750424568602,0.03574889,106130.0,106120.0,2.0053276]
[1750424568803,0.03574889,106130.0,106120.0,2.38385634]
[1750424574910,0.03574889,106130.0,106120.0,3.14086336]
[1750424579013,0.07002839,106130.0,106120.0,3.14086336]
[1750424579420,0.09230311,106130.0,106120.0,3.13810336]
[1750424580618,0.28073331,106130.0,106120.0,1.0532076]
[1750424580808,0.34203331,106130.0,106120.0,1.6276076]
[1750424581007,0.34203331,106130.0,106120.0,2.38463144]
[1750424581207,0.34203331,106130.0,106120.0,2.37463144]
[1750424581414,0.34203331,106130.0,106120.0,2.38463144]
[1750424582020,0.28547909,106130.0,106120.0,2.38467144]
[1750424582821,0.28547909,106130.0,106120.0,2.00626859]
[1750424585114,0.09704889,106130.0,106120.0,2.00626859]
[1750424585520,0.09704889,106130.0,106120.0,2.06906859]
[1750424585716,0.09704889,106130.0,106120.0,2.05906859]
[1750424585921,0.03574889,106130.0,106120.0,2.05906859]
[1750424586218,0.03574889,106130.0,106120.0,2.39906859]
[1750424586416,0.09225543,106130.0,106120.0,2.39906859]
[1750424586721,0.09185543,106130.0,106120.0,2.39906859]
[1750424586920,0.08808136,106130.0,106120.0,2.77768958]
[1750424587109,0.03117482,106130.0,106120.0,2.77768958]
[1750424587316,0.03157482,106130.0,106120.0,2.77768958]
[1750424587518,0.03157482,106130.0,106120.0,2.39906859]
[1750424590020,0.03574889,106130.0,106120.0,2.39906859]
[1750424602029,0.03574889,106130.0,106120.0,2.55566859]
[1750424602325,0.03574889,106130.0,106120.0,2.39906859]
[1750424602823,0.03574889,106130.0,106120.0,2.0204476]
[1750424603026,0.03574889,106130.0,106120.0,3.15589807]
[1750424603325,0.03574889,106130.0,106120.0,2.77741458]
[1750424604422,0.03574889,106130.0,106120.0,3.15589807]
[1750424604828,0.03574889,106130.0,106120.0,2.3989818]
[1750424608026,0.03574889,106130.0,106120.0,2.0889818]
[1750424608528,0.03574889,106130.0,106120.0,2.4294218]
[1750424609632,0.03574889,106130.0,106120.0,2.0594218]
[1750424609825,0.03574889,106130.0,106120.0,2.0894218]
[1750424610026,0.03574889,106130.0,106120.0,2.3894218]
[1750424618141,0.01347417,106130.0,106120.0,2.3894218]
[1750424618437,0.03589855,106130.0,106120.0,2.3894218]
[1750424621644,0.03172448,106130.0,106120.0,2.3894218]
[1750424622043,0.03132448,106130.0,106120.0,2.3894218]
[1750424622342,0.03172448,106130.0,106120.0,2.3894218]
[1750424624840,0.03172448,106130.0,106120.0,3.14638343]
[1750424626643,0.03589855,106130.0,106120.0,3.14638343]
[1750424635857,0.09240509,106130.0,106120.0,3.14638343]
[1750424636253,0.09240509,106130.0,106120.0,2.14834343]
[1750424636457,0.09240509,106130.0,106120.0,2.47660482]
[1750424636960,0.09240509,106130.0,106120.0,2.78660482]
[1750424637458,0.09240509,106130.0,106120.0,3.16510343]
[1750424637761,0.03589855,106130.0,106120.0,3.16510343]
[1750424638746,0.09240509,106130.0,106120.0,3.16510343]
[1750424638946,0.03589855,106130.0,106120.0,3.16510343]
[1750424641453,0.03589855,106130.0,106120.0,2.45834343]
[1750424641661,0.03589855,106130.0,106120.0,3.16402343]
[1750424642551,0.03589855,106130.0,106120.0,2.45834343]
[1750424643062,0.03589855,106130.0,106120.0,3.16402343]
[1750424643360,0.03589855,106130.0,106120.0,2.45834343]
[1750424643860,0.03589855,106130.0,106120.0,3.16402343]
[1750424649265,0.03589855,106130.0,106120.0,3.18108381]
[1750424654060,0.05650654,106150.0,106140.0,0.1884124]
[1750424654368,0.001,106160.0,106150.0,0.1883947]
[1750424654369,0.05750654,106160.0,106150.0,0.1883947]
[1750424654658,0.05750654,106160.0,106150.0,1.71019192]
[1750424654858,0.0014,106160.0,106150.0,1.71019192]
[1750424655064,0.0014,106160.0,106150.0,1.72372629]
[1750424655658,0.001,106160.0,106150.0,1.80040865]
[1750424655858,0.0014,106160.0,106150.0,1.80040865]
[1750424656260,0.0104,106160.0,106150.0,1.80040865]
[1750424657358,0.0154,106160.0,106150.0,1.80040865]
[1750424660260,0.01957407,106160.0,106150.0,1.80040865]
[1750424662168,0.01957407,106160.0,106150.0,1.81040865]
[1750424662469,0.01957407,106160.0,106150.0,1.05341143]
[1750424662670,0.01957407,106160.0,106150.0,1.46040865]
[1750424663171,0.01957407,106160.0,106150.0,1.79040865]
[1750424664758,0.01957407,106160.0,106150.0,1.46040865]
[1750424665273,0.01957407,106160.0,106150.0,1.82040865]
[1750424665972,0.04192272,106160.0,106150.0,1.82040865]
[1750424667373,0.04192272,106160.0,106150.0,1.46040865]
[1750424667574,0.04192272,106160.0,106150.0,1.78040865]
[1750424668873,0.04192272,106160.0,106150.0,1.82040865]
[1750424669769,0.04192272,106160.0,106150.0,1.46040865]
[1750424670582,0.04192272,106160.0,106150.0,1.79040865]
[1750424673684,0.04192272,106160.0,106150.0,2.49588865]
[1750424676590,0.09842926,106160.0,106150.0,2.49588865]
[1750424677185,0.04192272,106160.0,106150.0,2.49588865]
[1750424677588,0.07608061,106160.0,106150.0,2.49588865]
[1750424677980,0.04192272,106160.0,106150.0,2.49588865]
[1750424678382,0.01957407,106160.0,106150.0,2.49588865]
[1750424678583,0.07608061,106160.0,106150.0,2.49588865]
[1750424678788,0.09842926,106160.0,106150.0,2.49588865]
[1750424678989,0.04192272,106160.0,106150.0,2.87438726]
[1750424679189,0.04152272,106160.0,106150.0,2.87438726]
[1750424679392,0.04192272,106160.0,106150.0,2.87438726]
[1750424679888,0.04192272,106160.0,106150.0,3.68862726]
[1750424680085,0.04152272,106160.0,106150.0,3.68862726]
[1750424680286,0.04192272,106160.0,106150.0,3.68862726]
[1750424683500,0.04192272,106160.0,106150.0,2.98314726]
[1750424683700,0.03692272,106160.0,106150.0,3.31012865]
[1750424683900,0.03492272,106160.0,106150.0,3.31012865]
[1750424685503,0.03492272,106160.0,106150.0,2.60464865]
[1750424685703,0.03492272,106160.0,106150.0,3.31008865]
[1750424687500,0.03492272,106160.0,106150.0,3.46668865]
[1750424687706,0.03492272,106160.0,106150.0,3.31008865]
[1750424688508,0.03392272,106160.0,106150.0,3.68858726]
[1750424695605,0.00417407,106160.0,106150.0,3.68858726]
[1750424695910,0.30730654,106180.0,106170.0,0.1883592]
[1750424696108,0.30650654,106180.0,106170.0,2.76946516]
[1750424696311,0.30690654,106180.0,106170.0,2.83146516]
[1750424696512,0.2504,106180.0,106170.0,2.83146516]
[1750424697210,0.12120654,106190.0,106180.0,0.1883414]
[1750424697211,0.05750654,106190.0,106180.0,0.1883414]
[1750424697514,0.001,106190.0,106180.0,2.09643723]
[1750424697702,0.001,106190.0,106180.0,3.59643723]
[1750424697908,0.0014,106190.0,106180.0,2.09643723]
[1750424698109,0.001,106190.0,106180.0,2.09643723]
[1750424698407,0.0014,106190.0,106180.0,3.59643723]
[1750424698610,0.0104,106190.0,106180.0,3.59643723]
[1750424699005,0.12210654,106210.0,106200.0,0.188306]
[1750424699209,0.0656,106210.0,106200.0,3.10080183]
[1750424699424,0.0008,106210.0,106200.0,3.30532233]
[1750424699615,0.12180654,106220.0,106210.0,0.1882882]
[1750424699819,0.12260654,106220.0,106210.0,1.30608542]
[1750424700018,0.31087704,106220.0,106210.0,0.92758681]
[1750424700314,0.31087704,106220.0,106210.0,1.63290681]
[1750424700816,0.31087704,106220.0,106210.0,1.2544082]
[1750424701316,0.31087704,106220.0,106210.0,0.5490882]
[1750424701513,0.31087704,106220.0,106210.0,1.2544082]
[1750424701514,0.49917304,106220.0,106210.0,1.2544082]
[1750424701816,0.50317304,106220.0,106210.0,1.2544082]
[1750424702812,0.50317304,106220.0,106210.0,1.33072504]
[1750424703007,0.31487704,106220.0,106210.0,1.33064504]
[1750424704812,0.31905111,106220.0,106210.0,1.33064504]
[1750424706310,0.31905111,106220.0,106210.0,0.96980504]
[1750424706515,0.69711928,106220.0,106210.0,0.8934882]
[1750424706714,0.31905111,106220.0,106210.0,0.8934882]
[1750424707717,0.34128961,106220.0,106210.0,0.8934882]
[1750424708016,0.1882882,106210.0,106200.0,0.3608]
[1750424708217,0.188306,106200.0,106190.0,1.5044219]
[1750424708518,0.2730445,106200.0,106190.0,2.58765007]
[1750424709424,0.2730445,106200.0,106190.0,2.58761007]
[1750424716721,0.32955104,106200.0,106190.0,2.58761007]
[1750424717315,0.32955104,106200.0,106190.0,1.77353007]
[1750424718313,0.70761921,106200.0,106190.0,0.1883237]
[1750424718518,0.70761921,106200.0,106190.0,0.8934837]
[1750424719421,0.32955104,106200.0,106190.0,0.3208437]
[1750424719719,0.32955104,106200.0,106190.0,0.8934837]
[1750424721222,0.27721857,106200.0,106190.0,0.8934837]
[1750424721618,0.1883769,106170.0,106160.0,0.5962495]
[1750424721914,0.1883769,106170.0,106160.0,0.2825432]
[1750424721915,0.26696552,106170.0,106160.0,0.2825432]
[1750424722119,0.26696552,106170.0,106160.0,1.50062567]
[1750424722120,0.33196552,106170.0,106160.0,1.50062567]
[1750424722623,0.26696552,106170.0,106160.0,1.59447089]
[1750424723821,0.26696552,106170.0,106160.0,1.59647089]
[1750424724010,0.26696552,106170.0,106160.0,1.02307089]
[1750424724216,0.26696552,106170.0,106160.0,1.35700272]
[1750424724414,0.26696552,106170.0,106160.0,1.73507089]
[1750424724615,0.26696552,106170.0,106160.0,1.35700272]
[1750424724815,0.26696552,106170.0,106160.0,1.73407089]
[1750424725015,0.26696552,106170.0,106160.0,1.73207089]
[1750424725823,0.26696552,106170.0,106160.0,1.02607089]
[1750424726027,0.26696552,106170.0,106160.0,1.73207089]
[1750424727727,0.2106154,106170.0,106160.0,1.73207089]
[1750424729325,0.2106154,106170.0,106160.0,1.35400272]
[1750424729627,0.2106154,106170.0,106160.0,1.73207089]
[1750424731231,0.2106154,106170.0,106160.0,2.10207089]
[1750424731430,0.2106154,106170.0,106160.0,1.73207089]
[1750424731724,0.0222385,106170.0,106160.0,2.11207089]
[1750424731931,0.15052392,106180.0,106160.0,2.11207089]
[1750424731932,0.3296181,106180.0,106170.0,0.1883592]
[1750424732131,0.35172373,106180.0,106170.0,0.99222737]
[1750424732624,0.02210563,106180.0,106170.0,0.99222737]
[1750424732827,0.21044703,106180.0,106170.0,0.6141592]
[1750424733128,0.21044703,106180.0,106170.0,1.37222737]
[1750424733320,0.21044703,106180.0,106170.0,0.99422737]
[1750424733521,0.21044703,106180.0,106170.0,1.34422737]
[1750424733721,0.21044703,106180.0,106170.0,1.36422737]
[1750424734023,0.1883414,106180.0,106170.0,0.99422737]
[1750424734229,0.21045073,106180.0,106170.0,0.99422737]
[1750424734729,0.1883414,106180.0,106170.0,0.99422737]
[1750424734928,0.38593942,106190.0,106180.0,0.1883414]
[1750424735120,0.33885462,106190.0,106180.0,1.33548957]
[1750424735321,0.30461591,106190.0,106180.0,1.33548957]
[1750424735521,0.36089354,106190.0,106180.0,1.33548957]
[1750424736329,0.26671274,106190.0,106180.0,1.69628957]
[1750424736531,0.24460133,106190.0,106180.0,1.69628957]
[1750424736830,0.24460133,106190.0,106180.0,1.69828957]
[1750424737128,0.21044024,106190.0,106180.0,1.69828957]
[1750424737432,0.1883237,106190.0,106180.0,1.69828957]
[1750424737628,0.21043992,106190.0,106180.0,1.69828957]
[1750424737829,0.1883237,106190.0,106180.0,1.69828957]
[1750424738331,0.21046489,106190.0,106180.0,1.69828957]
[1750424738727,0.02214119,106190.0,106180.0,1.69828957]
[1750424738932,0.21046489,106190.0,106180.0,1.69828957]
[1750424742338,0.21046489,106190.0,106180.0,2.01828957]
[1750424742538,0.21046489,106190.0,106180.0,1.69828957]
[1750424745640,0.2667639,106190.0,106180.0,1.69828957]
[1750424745843,0.21046489,106190.0,106180.0,1.69828957]
[1750424746847,0.21046489,106190.0,106180.0,0.6143414]
[1750424747047,0.21046489,106190.0,106180.0,1.69832957]
[1750424749449,0.21463896,106190.0,106180.0,1.69832957]
[1750424749648,0.08261427,106190.0,106180.0,2.03832957]
[1750424749848,0.02631526,106190.0,106180.0,2.03832957]
[1750424750146,0.02631526,106190.0,106180.0,1.69832957]
[1750424750747,0.02631526,106190.0,106180.0,2.07832957]
[1750424751048,0.02631526,106190.0,106180.0,2.03832957]
[1750424753249,0.06047308,106190.0,106180.0,2.03832957]
[1750424753448,0.02671526,106190.0,106180.0,2.03832957]
[1750424753639,0.02254119,106190.0,106180.0,2.03832957]
[1750424754040,0.02214119,106190.0,106180.0,2.03832957]
[1750424754240,0.0004,106190.0,106180.0,2.03832957]
[1750424754448,0.02254119,106190.0,106180.0,2.03832957]
[1750424754648,0.02671526,106190.0,106180.0,2.03832957]
[1750424755447,0.02671526,106190.0,106180.0,1.69832957]
[1750424755649,0.02671526,106190.0,106180.0,0.99240957]
[1750424755852,0.02671526,106190.0,106180.0,1.69788957]
[1750424756149,0.02671526,106190.0,106180.0,0.99240957]
[1750424756352,0.02671526,106190.0,106180.0,1.69796957]
[1750424756753,0.21503896,106190.0,106180.0,1.69796957]
[1750424757051,1.01020614,106190.0,106180.0,0.8958214]
[1750424757348,1.07400614,106190.0,106180.0,0.8958214]
[1750424758251,0.69593797,106190.0,106180.0,0.8958214]
[1750424759152,0.71465814,106190.0,106180.0,0.8958214]
[1750424759653,0.71465814,106190.0,106180.0,0.8961814]
[1750424761655,0.71465814,106190.0,106180.0,0.3230614]
[1750424761958,0.71465814,106190.0,106180.0,0.8961014]
[1750424764957,0.71465814,106190.0,106180.0,0.1903414]
[1750424765258,0.71465814,106190.0,106180.0,0.7633814]
[1750424765259,1.09272631,106190.0,106180.0,0.7633814]
[1750424769062,1.01770713,106190.0,106180.0,0.7633814]
[1750424769763,1.09272631,106190.0,106180.0,0.7633814]
[1750424771265,0.71465814,106190.0,106180.0,0.7633814]
[1750424771465,0.35385814,106190.0,106180.0,1.14144957]
[1750424771956,0.35385814,106190.0,106180.0,1.20544957]
[1750424773465,0.35385814,106190.0,106180.0,0.8273814]
[1750424775860,0.29005814,106190.0,106180.0,0.8273814]
[1750424776061,0.29005814,106190.0,106180.0,1.20544957]
[1750424777169,0.21503896,106190.0,106180.0,1.20544957]
[1750424778868,0.29005814,106190.0,106180.0,1.20544957]
[1750424779358,0.29005814,106190.0,106180.0,1.56624957]
[1750424779970,0.28965814,106190.0,106180.0,1.56624957]
[1750424780765,0.29005814,106190.0,106180.0,1.56624957]
[1750424783771,0.29005814,106190.0,106180.0,1.20544957]
[1750424785674,0.29005814,106190.0,106180.0,0.8273814]
[1750424786076,0.26791695,106190.0,106180.0,1.20544957]
[1750424792980,0.26791695,106190.0,106180.0,0.8273814]
[1750424793173,0.26791695,106190.0,106180.0,1.20544957]
[1750424794174,0.26791695,106190.0,106180.0,1.33808957]
[1750424796578,0.26791685,106190.0,106180.0,1.33808957]
[1750424796776,0.26791685,106190.0,106180.0,2.06888957]
[1750424796777,0.06067186,106190.0,106180.0,2.06888957]
[1750424796986,0.06067186,106190.0,106180.0,2.03888957]
[1750424797182,0.06107186,106190.0,106180.0,2.03888957]
[1750424797382,0.00417407,106190.0,106180.0,2.03888957]
[1750424797584,0.00457407,106190.0,106180.0,2.03888957]
[1750424797882,0.00417407,106190.0,106180.0,2.03888957]
[1750424798082,0.00457407,106190.0,106180.0,2.03888957]
[1750424799183,0.05729779,106200.0,106190.0,0.1883237]
[1750424799385,0.05729779,106200.0,106190.0,1.27719187]
[1750424799578,0.24560369,106200.0,106190.0,0.95719187]
[1750424799777,0.24560369,106200.0,106190.0,1.2844037]
[1750424801284,0.98447186,106200.0,106190.0,0.2183237]
[1750424801585,0.1883237,106190.0,106180.0,0.329572]
[1750424801886,0.27555993,106190.0,106180.0,1.066512]
[1750424802385,0.248934,106190.0,106180.0,0.394272]
[1750424802682,0.27107699,106190.0,106180.0,1.099512]
[1750424802883,0.27107699,106190.0,106180.0,1.101512]
[1750424803882,0.27107699,106190.0,106180.0,0.396272]
[1750424804083,0.27107699,106190.0,106180.0,1.101512]
[1750424805583,0.27107699,106190.0,106180.0,1.47958017]
[1750424807589,0.248934,106190.0,106180.0,1.47958017]
[1750424809089,0.19249777,106190.0,106180.0,1.47958017]
[1750424812987,0.19249777,106190.0,106180.0,1.101512]
[1750424813288,0.19249777,106190.0,106180.0,1.47958017]
[1750424818386,0.19249777,106190.0,106180.0,1.13514017]
[1750424818690,0.19249777,106190.0,106180.0,1.429272]
[1750424818989,0.19249777,106190.0,106180.0,1.461072]
[1750424819194,0.24895471,106190.0,106180.0,1.461072]
[1750424820490,0.24895471,106190.0,106180.0,1.83914017]
[1750424822590,0.27109848,106190.0,106180.0,1.83914017]
[1750424823594,0.21464154,106190.0,106180.0,1.100272]
[1750424823890,0.66772889,106190.0,106180.0,0.9743062]
[1750424824090,0.73222889,106190.0,106180.0,0.9743062]
[1750424824690,0.35416072,106190.0,106180.0,1.0052062]
[1750424826894,0.35416072,106190.0,106180.0,1.38327437]
[1750424827595,0.27914154,106190.0,106180.0,1.38327437]
[1750424827790,0.33201695,106190.0,106180.0,1.38327437]
[1750424828294,0.33201695,106190.0,106180.0,1.0052062]
[1750424828690,0.33201695,106190.0,106180.0,0.3000062]
[1750424828897,0.71008512,106190.0,106180.0,1.0051262]
[1750424829191,0.70808512,106190.0,106180.0,0.2374062]
[1750424829400,0.33001695,106190.0,106180.0,0.2374062]
[1750424829592,0.70808512,106190.0,106180.0,0.2374062]
[1750424830699,0.70808512,106190.0,106180.0,0.9425262]
[1750424831797,0.70808512,106190.0,106180.0,0.9737262]
[1750424833898,1.06888512,106190.0,106180.0,0.9736862]
[1750424834198,1.06888512,106190.0,106180.0,0.9266048]
[1750424834801,1.06888512,106190.0,106180.0,0.0332]
[1750424835096,1.06888512,106190.0,106180.0,0.9266214]
[1750424838403,1.06888512,106190.0,106180.0,0.2215414]
[1750424839613,1.06888512,106190.0,106180.0,0.9266214]
[1750424840915,1.0691138,106190.0,106180.0,0.9266214]
[1750424841293,1.0691138,106190.0,106180.0,1.30491825]
[1750424842203,1.0691138,106190.0,106180.0,0.2215414]
[1750424842404,1.0691138,106190.0,106180.0,0.8954214]
[1750424842797,1.0691138,106190.0,106180.0,1.27371825]
[1750424843096,0.7083138,106190.0,106180.0,1.30411825]
[1750424843391,0.7083138,106190.0,106180.0,1.33431825]
[1750424844205,0.7083138,106190.0,106180.0,0.9560214]
[1750424844404,0.7083138,106190.0,106180.0,1.33431825]
[1750424846006,0.7083138,106190.0,106180.0,0.9560214]
[1750424846305,0.7083138,106190.0,106180.0,1.33431825]
[1750424848204,0.7083138,106190.0,106180.0,0.9560214]
[1750424848392,0.7083138,106190.0,106180.0,1.33431825]
[1750424850307,0.7083138,106190.0,106180.0,0.8235414]
[1750424850607,0.6755138,106190.0,106180.0,0.8235414]
[1750424851905,1.0363138,106190.0,106180.0,0.8235414]
[1750424852904,0.62631695,106190.0,106180.0,0.8235414]
[1750424853110,1.0046138,106190.0,106180.0,0.8235414]
[1750424854314,1.0046138,106190.0,106180.0,1.20183825]
[1750424854907,0.6438138,106190.0,106180.0,1.3683351]
[1750424855112,0.6438138,106190.0,106180.0,1.69503825]
[1750424856004,0.6438138,106190.0,106180.0,1.33423825]
[1750424856211,0.6438138,106190.0,106180.0,1.69503825]
[1750424856510,0.26551695,106190.0,106180.0,1.69503825]
[1750424856711,0.6438138,106190.0,106180.0,1.33423825]
[1750424856904,0.6438138,106190.0,106180.0,1.69503825]
[1750424857412,0.26551695,106190.0,106180.0,1.69503825]
[1750424857613,0.6438138,106190.0,106180.0,1.69503825]
[1750424858507,0.6438138,106190.0,106180.0,1.3167414]
[1750424858712,1.0046138,106190.0,106180.0,1.33423825]
[1750424859216,0.92959462,106190.0,106180.0,1.33423825]
[1750424859410,1.0233686,106190.0,106180.0,0.9559414]
[1750424859609,0.6625686,106190.0,106180.0,0.9559414]
[1750424860117,0.28427175,106190.0,106180.0,0.9559414]
[1750424860310,0.6625686,106190.0,106180.0,1.33423825]
[1750424862716,0.6625686,106190.0,106180.0,0.2509414]
[1750424862921,0.6625686,106190.0,106180.0,1.33407825]
[1750424865522,0.28427175,106190.0,106180.0,1.33407825]
[1750424865728,0.6625686,106190.0,106180.0,1.33407825]
[1750424868533,0.64416608,106190.0,106180.0,1.33407825]
[1750424869627,0.64416608,106190.0,106180.0,1.14573685]
[1750424869828,0.64416608,106190.0,106180.0,1.33407815]
[1750424876838,0.64416608,106190.0,106180.0,1.20171815]
[1750424880740,0.26586923,106190.0,106180.0,1.20171815]
[1750424880941,0.64416608,106190.0,106180.0,1.20171815]
[1750424882747,0.26586923,106190.0,106180.0,1.20171815]
[1750424883045,0.64416608,106190.0,106180.0,1.20171815]
[1750424885245,0.26586923,106190.0,106180.0,1.940815]
[1750424885538,0.64416608,106190.0,106180.0,1.940815]
[1750424886337,0.64416608,106190.0,106180.0,1.56251815]
[1750424886741,0.64416608,106190.0,106180.0,1.940815]
[1750424886940,0.26586923,106190.0,106180.0,1.940815]
[1750424887643,0.1863237,106190.0,106180.0,1.940815]
[1750424887843,0.26168865,106190.0,106180.0,1.940815]
[1750424888440,0.1863237,106190.0,106180.0,1.940815]
[1750424888637,0.26168865,106190.0,106180.0,1.940815]
[1750424888843,0.26208865,106190.0,106180.0,1.940815]
[1750424889947,0.26208865,106190.0,106180.0,1.1842213]
[1750424890146,0.6403855,106190.0,106180.0,1.1842213]
[1750424890344,0.6403855,106190.0,106180.0,1.940815]
[1750424890644,0.26626272,106190.0,106180.0,1.940815]
[1750424890842,0.64455957,106190.0,106180.0,1.56251815]
[1750424891942,0.64455957,106190.0,106180.0,0.99003815]
[1750424892146,0.64455957,106190.0,106180.0,1.33387815]
[1750424892337,0.64455957,106190.0,106180.0,0.9555813]
[1750424892538,0.26626272,106190.0,106180.0,1.33387815]
[1750424892741,0.64455957,106190.0,106180.0,1.33387815]
[1750424892941,0.64455957,106190.0,106180.0,0.2509413]
[1750424893140,0.64455957,106190.0,106180.0,0.9555813]
[1750424893336,0.64455957,106190.0,106180.0,0.2509413]
[1750424893538,0.64455957,106190.0,106180.0,0.9557013]
[1750424894039,0.66685927,106190.0,106180.0,0.8235813]
[1750424895943,0.66685927,106190.0,106180.0,1.20187815]
[1750424896946,0.66685927,106190.0,106180.0,0.62923815]
[1750424897136,0.66685927,106190.0,106180.0,1.20195815]
[1750424903145,0.66645927,106190.0,106180.0,1.20195815]
[1750424906350,0.28816242,106190.0,106180.0,1.20195815]
[1750424906538,0.66645927,106190.0,106180.0,1.20195815]
[1750424907650,0.28816242,106190.0,106180.0,1.20195815]
[1750424907843,0.66645927,106190.0,106180.0,1.20195815]
[1750424909352,0.28816242,106190.0,106180.0,1.20195815]
[1750424909552,0.66645927,106190.0,106180.0,1.20195815]
[1750424910650,0.28816242,106190.0,106180.0,1.20195815]
[1750424910850,0.66645927,106190.0,106180.0,1.20195815]
[1750424912251,0.66645927,106190.0,106180.0,0.8236613]
[1750424913452,0.28816242,106190.0,106180.0,0.8236613]
[1750424913652,0.66645927,106190.0,106180.0,0.8236613]
[1750424914354,1.02725927,106190.0,106180.0,0.63532]
[1750424915251,1.02725927,106190.0,106180.0,0.8236613]
[1750424915451,1.02725927,106190.0,106180.0,0.9559813]
[1750424918359,1.02725927,106190.0,106180.0,1.33427815]
[1750424919251,1.02725927,106190.0,106180.0,0.9559813]
[1750424919445,1.02725927,106190.0,106180.0,0.0324]
[1750424919654,1.48886515,106190.0,106180.0,0.57432]
[1750424919956,0.0470885,106180.0,106150.0,0.6902389]
[1750424920145,1.00149039,106160.0,106150.0,0.63253956]
[1750424920350,1.00149039,106160.0,106150.0,1.58315641]
[1750424920351,0.64549324,106160.0,106150.0,1.58315641]
[1750424920550,0.64549324,106160.0,106150.0,1.94395641]
[1750424920752,0.26719639,106160.0,106150.0,1.94395641]
[1750424920964,0.07881959,106160.0,106150.0,2.32225326]
[1750424921258,0.24529669,106160.0,106150.0,1.94395641]
[1750424921556,0.2110765,106160.0,106150.0,1.94395641]
[1750424921757,0.2110765,106160.0,106150.0,2.24395641]
[1750424921957,0.2110765,106160.0,106150.0,2.2576346]
[1750424922346,0.0226997,106160.0,106150.0,2.63593145]
[1750424922752,0.0222997,106160.0,106150.0,2.64093145]
[1750424922960,0.40930398,106170.0,106160.0,0.1883768]
[1750424923153,0.40930399,106170.0,106160.0,1.3704705]
[1750424923559,0.40930399,106170.0,106160.0,0.99217365]
[1750424923560,0.78760084,106170.0,106160.0,0.99217365]
[1750424925658,0.78760084,106170.0,106160.0,0.99317365]
[1750424926164,0.40930399,106170.0,106160.0,0.99317365]
[1750424926358,0.78760084,106170.0,106160.0,0.99317365]
[1750424926557,0.78760084,106170.0,106160.0,0.99617365]
[1750424929265,0.78760084,106170.0,106160.0,1.3744705]
[1750424929266,0.40930399,106170.0,106160.0,1.3744705]
[1750424929460,0.78760084,106170.0,106160.0,1.3744705]
[1750424929660,0.74050724,106170.0,106160.0,1.3744705]
[1750424929860,0.36221039,106170.0,106160.0,1.3744705]
[1750424930460,0.74468131,106170.0,106160.0,1.3744705]
[1750424931677,0.74468131,106170.0,106160.0,0.6178768]
[1750424931860,0.74468131,106170.0,106160.0,1.3744705]
[1750424935874,0.36638446,106170.0,106160.0,1.3744705]
[1750424936076,0.74468131,106170.0,106160.0,0.6178768]
[1750424936264,0.74468131,106170.0,106160.0,1.3744705]
[1750424938272,0.36638446,106170.0,106160.0,1.3744705]
[1750424938474,0.74468131,106170.0,106160.0,1.3744705]
[1750424939660,1.48377816,106170.0,106160.0,0.0687]
[1750424939866,0.74468131,106170.0,106160.0,0.9617968]
[1750424940069,0.77738131,106170.0,106160.0,0.9617968]
[1750424940672,0.77738131,106170.0,106160.0,0.8970968]
[1750424940866,0.80878131,106170.0,106160.0,0.8960968]
[1750424941060,1.18707816,106170.0,106160.0,0.8960968]
[1750424941266,0.80878131,106170.0,106160.0,0.8960968]
[1750424942165,0.80878131,106170.0,106160.0,0.8930968]
[1750424942367,0.80878131,106170.0,106160.0,0.8940968]
[1750424943675,0.80878131,106170.0,106160.0,0.7617768]
[1750424944074,1.16958131,106170.0,106160.0,0.7617768]
[1750424946477,1.11306142,106170.0,106160.0,0.7617768]
[1750424948480,1.18842127,106170.0,106160.0,0.7617768]
[1750424948980,1.11306142,106170.0,106160.0,0.7617768]
[1750424950079,0.37396457,106170.0,106160.0,0.7617768]
[1750424950274,0.75226142,106170.0,106160.0,0.7617768]
[1750424952572,0.21568097,106170.0,106160.0,1.8791705]
[1750424952772,0.21566557,106170.0,106160.0,1.9397705]
[1750424952972,0.21486557,106170.0,106160.0,1.9397705]
[1750424953173,0.08339392,106170.0,106160.0,1.9397705]
[1750424953880,0.26717885,106170.0,106160.0,1.9397705]
[1750424954182,0.26757885,106170.0,106160.0,1.9397705]
[1750424955280,0.07921985,106170.0,106160.0,1.9397705]
[1750424955484,0.0227325,106170.0,106160.0,1.9397705]
[1750424959789,0.0223325,106170.0,106160.0,1.9397705]
[1750424960682,0.0227325,106170.0,106160.0,1.9397705]
[1750424960882,0.02690657,106170.0,106160.0,1.9397705]
[1750424962682,0.02690657,106170.0,106160.0,2.2997705]
[1750424965396,0.02690657,106170.0,106160.0,1.7273705]